bitfinex/quotes_BTCUSD_20230405
["timestamp","ask_amount","ask_price","bid_price","bid_amount"]
[1680736004404,0.35794789,28135.0,28134.0,1.35770489]
[1680736006699,0.36894789,28135.0,28134.0,1.35770489]
[1680736006906,0.36912789,28135.0,28134.0,1.35770489]
[1680736007119,0.36894789,28135.0,28134.0,1.35770489]
[1680736011933,0.36894789,28135.0,28134.0,1.32731689]
[1680736012542,0.37994789,28135.0,28134.0,1.35908889]
[1680736013402,0.37994789,28135.0,28134.0,1.32731689]
[1680736013912,0.37994789,28135.0,28134.0,1.35939589]
[1680736014128,0.37994789,28135.0,28134.0,1.35919589]
[1680736014339,0.37994789,28135.0,28134.0,1.32731689]
[1680736014731,0.38012789,28135.0,28134.0,1.32731689]
[1680736015107,0.38012789,28135.0,28134.0,1.35854389]
[1680736015306,0.38012789,28135.0,28134.0,1.32731689]
[1680736015935,0.38012789,28135.0,28134.0,1.35837989]
[1680736016306,0.38012789,28135.0,28134.0,1.32731689]
[1680736016958,0.38012789,28135.0,28134.0,1.35800189]
[1680736017161,0.38012789,28135.0,28134.0,1.32731689]
[1680736018165,0.38012789,28135.0,28134.0,1.35870689]
[1680736018369,0.39112789,28135.0,28134.0,0.97260633]
[1680736018572,0.39094789,28135.0,28134.0,0.71758299]
[1680736020398,0.39094789,28135.0,28134.0,0.75029799]
[1680736021698,0.39094789,28135.0,28134.0,0.58291274]
[1680736021900,0.39112789,28135.0,28134.0,0.43317846]
[1680736024172,0.39112789,28135.0,28134.0,0.73317846]
[1680736024388,0.40212789,28135.0,28134.0,0.73317846]
[1680736024594,0.40212789,28135.0,28134.0,0.73335846]
[1680736025788,0.40212789,28135.0,28134.0,0.73317846]
[1680736030059,0.41312789,28135.0,28134.0,0.73317846]
[1680736030472,0.41312789,28135.0,28134.0,0.73335846]
[1680736031291,0.41312789,28135.0,28134.0,0.73317846]
[1680736033870,0.41312789,28135.0,28134.0,0.73335846]
[1680736034970,0.41312789,28135.0,28134.0,0.73317846]
[1680736036192,0.42412789,28135.0,28134.0,0.73335846]
[1680736036401,0.42412789,28135.0,28134.0,0.73317846]
[1680736039902,0.42412789,28135.0,28134.0,0.73335846]
[1680736040113,0.42412789,28135.0,28134.0,0.73317846]
[1680736042018,0.43512789,28135.0,28134.0,0.73317846]
[1680736047409,0.43512789,28135.0,28134.0,0.73335846]
[1680736047637,0.43512789,28135.0,28134.0,0.73317846]
[1680736047848,0.44612789,28135.0,28134.0,0.73317846]
[1680736052345,0.44612789,28135.0,28134.0,0.9882018]
[1680736052553,0.44612789,28135.0,28134.0,0.73317846]
[1680736053696,0.45712789,28135.0,28134.0,0.73317846]
[1680736054662,0.45712789,28135.0,28134.0,0.9882018]
[1680736055965,0.45712789,28135.0,28134.0,1.34291236]
[1680736057044,0.45712789,28135.0,28134.0,1.38931236]
[1680736057246,0.45712789,28135.0,28134.0,1.17188902]
[1680736058322,0.45433227,28135.0,28134.0,1.15306902]
[1680736058514,0.45433227,28135.0,28134.0,1.18106902]
[1680736058727,0.45433227,28135.0,28134.0,1.15306902]
[1680736058931,0.45433227,28135.0,28134.0,1.18106902]
[1680736059174,0.45174961,28135.0,28134.0,1.18106902]
[1680736059380,0.46274961,28135.0,28134.0,1.35877902]
[1680736060220,0.46019836,28135.0,28134.0,1.35877902]
[1680736061293,0.45766647,28135.0,28134.0,1.35877902]
[1680736062151,0.45766647,28135.0,28134.0,1.18106902]
[1680736062359,0.45515411,28135.0,28134.0,1.18106902]
[1680736062552,0.45515411,28135.0,28134.0,1.15306902]
[1680736062751,0.45515411,28135.0,28134.0,1.18106902]
[1680736063159,0.45265875,28135.0,28134.0,1.18106902]
[1680736064207,0.45018174,28135.0,28134.0,1.18106902]
[1680736065238,0.45872243,28135.0,28134.0,1.18106902]
[1680736066267,0.4562807,28135.0,28134.0,1.18106902]
[1680736066889,0.4562807,28135.0,28134.0,1.43622952]
[1680736067097,0.4564607,28135.0,28134.0,1.23518215]
[1680736067313,0.45385686,28135.0,28134.0,1.23536215]
[1680736067933,0.45385686,28135.0,28134.0,1.20736215]
[1680736068343,0.45144234,28135.0,28134.0,1.23536215]
[1680736068552,0.45144234,28135.0,28134.0,0.98020165]
[1680736068975,0.45144234,28135.0,28134.0,1.22686215]
[1680736071503,0.46244234,28135.0,28134.0,1.22686215]
[1680736073779,0.46262234,28135.0,28134.0,1.22686215]
[1680736074611,0.46244234,28135.0,28134.0,1.22686215]
[1680736077299,0.47344234,28135.0,28134.0,1.22686215]
[1680736083106,0.48444234,28135.0,28134.0,1.22686215]
[1680736086456,0.48444234,28135.0,28134.0,1.45066947]
[1680736086666,0.48444234,28135.0,28134.0,1.23107165]
[1680736086877,0.48444234,28135.0,28134.0,1.4862285]
[1680736087087,0.48444234,28135.0,28134.0,1.20307165]
[1680736087300,0.48444234,28135.0,28134.0,1.05336165]
[1680736088164,0.48462234,28135.0,28134.0,1.02536165]
[1680736088370,0.48462234,28135.0,28134.0,1.05336165]
[1680736088584,0.48444234,28135.0,28134.0,1.02536165]
[1680736088793,0.49544234,28135.0,28134.0,1.05336165]
[1680736094679,0.50644234,28135.0,28134.0,1.05336165]
[1680736100645,0.51744234,28135.0,28134.0,1.05336165]
[1680736106182,0.5150663,28135.0,28134.0,1.05336165]
[1680736106409,0.5260663,28135.0,28134.0,1.05336165]
[1680736107211,0.5237125,28135.0,28134.0,1.05336165]
[1680736108219,0.5213855,28135.0,28134.0,1.05336165]
[1680736109024,0.5213855,28135.0,28134.0,1.42962804]
[1680736109229,0.51907807,28135.0,28134.0,1.42962804]
[1680736110223,0.51683563,28135.0,28134.0,1.42962804]
[1680736111309,0.51461308,28135.0,28134.0,1.42962804]
[1680736112174,0.51461308,28135.0,28134.0,1.01576165]
[1680736112384,0.51240657,28135.0,28134.0,1.01576165]
[1680736112595,0.52340657,28135.0,28134.0,1.01576165]
[1680736113199,0.52340657,28135.0,28134.0,1.02326165]
[1680736113405,0.52340657,28135.0,28134.0,1.01576165]
[1680736113617,0.52340657,28135.0,28134.0,1.00726165]
[1680736113825,0.52340657,28135.0,28134.0,0.57939109]
[1680736114039,0.52340657,28135.0,28134.0,0.54667609]
[1680736114248,0.52352657,28135.0,28134.0,0.54649609]
[1680736114455,0.52358657,28135.0,28134.0,0.54649609]
[1680736114890,0.52358657,28135.0,28134.0,0.51849609]
[1680736115103,0.52358657,28135.0,28134.0,0.54649609]
[1680736115967,0.52358657,28135.0,28134.0,0.51849609]
[1680736116178,0.52358657,28135.0,28134.0,0.53149609]
[1680736118306,0.53458657,28135.0,28134.0,0.53149609]
[1680736118789,0.53458657,28135.0,28134.0,0.53167609]
[1680736119811,0.53458657,28135.0,28134.0,0.53149609]
[1680736121498,0.53458657,28135.0,28134.0,0.56359509]
[1680736122122,0.53458657,28135.0,28134.0,0.56390009]
[1680736122530,0.53458657,28135.0,28134.0,0.74408987]
[1680736122743,0.53458657,28135.0,28134.0,0.77583187]
[1680736122943,0.53458657,28135.0,28134.0,0.77595187]
[1680736123154,0.53458657,28135.0,28134.0,0.77601187]
[1680736124106,0.54558657,28135.0,28134.0,0.77601187]
[1680736124316,0.54558657,28135.0,28134.0,0.77583187]
[1680736124523,0.54558657,28135.0,28134.0,0.74408987]
[1680736125725,0.54558657,28135.0,28134.0,0.77571287]
[1680736126584,0.54558657,28135.0,28134.0,0.74408987]
[1680736126989,0.54558657,28135.0,28134.0,0.77465287]
[1680736127416,0.54439157,28135.0,28134.0,0.77483287]
[1680736129918,0.55539157,28135.0,28134.0,0.77483287]
[1680736130135,0.55539157,28135.0,28134.0,0.74426987]
[1680736130572,0.55539157,28135.0,28134.0,0.77461587]
[1680736130775,0.55557157,28135.0,28134.0,0.77461587]
[1680736130977,0.55539157,28135.0,28134.0,0.77461587]
[1680736133708,0.55557157,28135.0,28134.0,0.77461587]
[1680736133969,0.55557157,28135.0,28134.0,0.56202209]
[1680736134177,0.55557157,28135.0,28134.0,0.92523265]
[1680736134779,0.55539157,28135.0,28134.0,0.92523265]
[1680736135623,0.56639157,28135.0,28134.0,0.92523265]
[1680736141264,0.56639157,28135.0,28134.0,0.96313265]
[1680736141489,0.57739157,28135.0,28134.0,0.96313265]
[1680736142104,0.57739157,28135.0,28134.0,0.91673265]
[1680736142540,0.57739157,28135.0,28134.0,1.12925361]
[1680736143874,0.57739157,28135.0,28134.0,1.13015061]
[1680736144734,0.57757157,28135.0,28134.0,1.13015061]
[1680736144947,0.57739157,28135.0,28134.0,1.13015061]
[1680736145963,0.57739157,28135.0,28134.0,0.91762965]
[1680736146164,0.57739157,28135.0,28134.0,1.13016891]
[1680736146412,0.57739157,28135.0,28134.0,0.91762965]
[1680736147135,0.58839157,28135.0,28134.0,0.91762965]
[1680736147337,0.58839157,28135.0,28134.0,0.88638665]
[1680736147562,0.58839157,28135.0,28134.0,0.53167609]
[1680736147772,0.58857157,28135.0,28134.0,0.56318509]
[1680736148140,0.58857157,28135.0,28134.0,0.56257309]
[1680736148717,0.58851157,28135.0,28134.0,0.56257309]
[1680736148980,0.58839157,28135.0,28134.0,0.56257309]
[1680736149803,0.58839157,28135.0,28134.0,0.53167609]
[1680736150226,0.58839157,28135.0,28134.0,0.56318509]
[1680736152881,0.59939157,28135.0,28134.0,0.56318509]
[1680736155113,0.59957157,28135.0,28134.0,0.56318509]
[1680736155260,0.59939157,28135.0,28134.0,0.56318509]
[1680736157214,0.59939157,28135.0,28134.0,0.91789565]
[1680736157431,0.59939157,28135.0,28134.0,0.95579565]
[1680736158047,0.59939157,28135.0,28134.0,0.91789565]
[1680736158456,0.59939157,28135.0,28134.0,1.17307674]
[1680736158665,0.61039157,28135.0,28134.0,1.17307674]
[1680736164329,0.62139157,28135.0,28134.0,1.17307674]
[1680736165429,0.62139157,28135.0,28134.0,0.91789565]
[1680736166294,0.62157157,28135.0,28134.0,1.17307674]
[1680736166716,0.62139157,28135.0,28134.0,1.17307674]
[1680736168224,0.62157157,28135.0,28134.0,1.17307674]
[1680736169518,0.62139157,28135.0,28134.0,1.17307674]
[1680736170145,0.63239157,28135.0,28134.0,1.17307674]
[1680736170560,0.63239157,28135.0,28134.0,0.91789565]
[1680736170743,0.63239157,28135.0,28134.0,1.17307674]
[1680736170974,0.63257157,28135.0,28134.0,0.91789565]
[1680736171153,0.63257157,28135.0,28134.0,1.17307674]
[1680736171778,0.63257157,28135.0,28134.0,0.91789565]
[1680736171961,0.63239157,28135.0,28134.0,0.91789565]
[1680736174670,0.63239157,28135.0,28134.0,1.21947674]
[1680736175818,0.64339157,28135.0,28134.0,1.21947674]
[1680736176189,0.64351157,28135.0,28134.0,1.21947674]
[1680736176413,0.64351157,28135.0,28134.0,1.06037045]
[1680736176414,0.64357157,28135.0,28134.0,1.06037045]
[1680736181576,0.65457157,28135.0,28134.0,1.06037045]
[1680736187273,0.66557157,28135.0,28134.0,1.06037045]
[1680736188120,0.66557157,28135.0,28134.0,1.49827045]
[1680736188321,0.66557157,28135.0,28134.0,1.42079936]
[1680736193009,0.67657157,28135.0,28134.0,1.42079936]
[1680736195946,0.67657157,28135.0,28134.0,1.43855499]
[1680736196309,0.67415354,28135.0,28134.0,1.47411499]
[1680736196484,0.67415354,28135.0,28134.0,1.46111499]
[1680736196687,0.67415354,28135.0,28134.0,1.48911499]
[1680736196865,0.67415354,28135.0,28134.0,1.46111499]
[1680736197074,0.67193415,28135.0,28134.0,1.48911499]
[1680736198136,0.66973447,28135.0,28134.0,1.48911499]
[1680736198778,0.68073447,28135.0,28134.0,1.48911499]
[1680736199201,0.67854697,28135.0,28134.0,1.48911499]
[1680736200140,0.67638268,28135.0,28134.0,1.48911499]
[1680736200346,0.67638268,28135.0,28134.0,1.31140499]
[1680736201318,0.67423591,28135.0,28134.0,1.31140499]
[1680736202428,0.67210416,28135.0,28134.0,1.31140499]
[1680736203446,0.66998796,28135.0,28134.0,1.31140499]
[1680736204300,0.66788851,28135.0,28134.0,1.31140499]
[1680736204505,0.67888851,28135.0,28134.0,1.30770499]
[1680736204743,0.67888851,28135.0,28134.0,0.90752499]
[1680736204744,0.67906851,28135.0,28134.0,0.90752499]
[1680736204948,0.67906851,28135.0,28134.0,0.88976936]
[1680736205162,0.67906851,28135.0,28134.0,1.10703024]
[1680736205375,0.67661599,28135.0,28134.0,1.10721024]
[1680736206214,0.6743538,28135.0,28134.0,1.10721024]
[1680736207218,0.6718767,28135.0,28134.0,1.10721024]
[1680736208438,0.66941199,28135.0,28134.0,1.10721024]
[1680736209417,0.6669596,28135.0,28134.0,1.10721024]
[1680736210250,0.66451947,28135.0,28134.0,1.10721024]
[1680736210479,0.67551947,28135.0,28134.0,1.10721024]
[1680736210649,0.67551947,28135.0,28134.0,0.85204936]
[1680736211058,0.67569947,28135.0,28134.0,0.85204936]
[1680736211258,0.67327154,28135.0,28134.0,0.81414936]
[1680736212187,0.67067575,28135.0,28134.0,0.81414936]
[1680736213230,0.66827204,28135.0,28134.0,0.81414936]
[1680736213657,0.66827204,28135.0,28134.0,1.06939226]
[1680736214290,0.66588035,28135.0,28134.0,1.06939226]
[1680736215191,0.66350062,28135.0,28134.0,1.06939226]
[1680736215810,0.66368062,28135.0,28134.0,0.81414936]
[1680736216023,0.66350062,28135.0,28134.0,0.81414936]
[1680736216235,0.67234804,28135.0,28134.0,0.81414936]
[1680736217055,0.67234804,28135.0,28134.0,1.06939224]
[1680736217334,0.66999097,28135.0,28134.0,0.81414936]
[1680736218299,0.66764569,28135.0,28134.0,0.81414936]
[1680736219110,0.66531213,28135.0,28134.0,0.81414936]
[1680736219615,0.66531213,28135.0,28134.0,0.80564936]
[1680736219792,0.66531213,28135.0,28134.0,0.4509388]
[1680736220380,0.66543213,28135.0,28134.0,0.4507588]
[1680736220590,0.66549213,28135.0,28134.0,0.4507588]
[1680736222040,0.67649213,28135.0,28134.0,0.4507588]
[1680736222247,0.67649213,28135.0,28134.0,0.4509388]
[1680736222870,0.67649213,28135.0,28134.0,0.4507588]
[1680736223492,0.67649213,28135.0,28134.0,0.4503068]
[1680736227811,0.68749213,28135.0,28134.0,0.4503068]
[1680736228747,0.68749213,28135.0,28134.0,0.4504868]
[1680736229355,0.68749213,28135.0,28134.0,0.4503068]
[1680736229588,0.68749213,28135.0,28134.0,0.90374458]
[1680736230402,0.68749213,28135.0,28134.0,0.80374458]
[1680736232709,0.68749213,28135.0,28134.0,0.80380458]
[1680736232916,0.68749213,28135.0,28134.0,0.80374458]
[1680736233544,0.69849213,28135.0,28134.0,0.80374458]
[1680736239536,0.70949213,28135.0,28134.0,0.80374458]
[1680736242270,0.70604514,28135.0,28134.0,0.80392458]
[1680736243484,0.70302317,28135.0,28134.0,0.80392458]
[1680736243905,0.70320317,28135.0,28134.0,0.80392458]
[1680736244227,0.70019199,28135.0,28134.0,0.80392458]
[1680736245045,0.70019199,28135.0,28134.0,0.78818231]
[1680736245254,0.71119199,28135.0,28134.0,0.80907336]
[1680736247314,0.70778077,28135.0,28134.0,0.80907336]
[1680736248463,0.70456197,28135.0,28134.0,0.80907336]
[1680736249297,0.70135555,28135.0,28134.0,0.80907336]
[1680736250235,0.69816147,28135.0,28134.0,0.80907336]
[1680736251162,0.70916147,28135.0,28134.0,0.80907336]
[1680736251362,0.70597967,28135.0,28134.0,0.80907336]
[1680736251542,0.70615967,28135.0,28134.0,0.80907336]
[1680736251946,0.70597967,28135.0,28134.0,0.80907336]
[1680736252350,0.70281011,28135.0,28134.0,0.80907336]
[1680736253211,0.69965274,28135.0,28134.0,0.80907336]
[1680736254210,0.69650751,28135.0,28134.0,0.80907336]
[1680736255319,0.69337438,28135.0,28134.0,0.80907336]
[1680736256183,0.6902533,28135.0,28134.0,0.80907336]
[1680736257006,0.7012533,28135.0,28134.0,0.80907336]
[1680736257183,0.69814422,28135.0,28134.0,0.80907336]
[1680736258193,0.6950471,28135.0,28134.0,0.80907336]
[1680736260411,0.69196189,28135.0,28134.0,0.80907336]
[1680736261234,0.68888855,28135.0,28134.0,0.80907336]
[1680736261442,0.68888855,28135.0,28134.0,0.81006436]
[1680736262470,0.68582703,28135.0,28134.0,0.77801636]
[1680736262688,0.69700703,28135.0,28134.0,0.58351072]
[1680736263069,0.69700703,28135.0,28134.0,0.43916161]
[1680736264266,0.69700703,28135.0,28134.0,0.43934161]
[1680736264386,0.69700703,28135.0,28134.0,0.46984761]
[1680736264581,0.69700703,28135.0,28134.0,0.43916161]
[1680736264796,0.69700703,28135.0,28134.0,0.73916161]
[1680736265002,0.69700703,28135.0,28134.0,0.76959561]
[1680736265215,0.69521173,28135.0,28134.0,1.02504988]
[1680736265816,0.69521173,28135.0,28134.0,1.38034988]
[1680736266222,0.69375796,28135.0,28134.0,1.37399652]
[1680736266439,0.69375796,28135.0,28134.0,1.35945883]
[1680736266860,0.69393796,28135.0,28134.0,1.35945883]
[1680736267074,0.69375796,28135.0,28134.0,1.35945883]
[1680736267274,0.69375796,28135.0,28134.0,1.37254275]
[1680736267275,0.69244957,28135.0,28134.0,1.37254275]
[1680736268401,0.70221697,28135.0,28134.0,1.37254275]
[1680736269329,0.70116268,28135.0,28134.0,1.37254275]
[1680736270404,0.70021382,28135.0,28134.0,1.35945883]
[1680736270610,0.70039382,28135.0,28134.0,1.35945883]
[1680736271239,0.69953984,28135.0,28134.0,1.36799861]
[1680736272221,0.69859126,28135.0,28134.0,1.36799861]
[1680736273209,0.69789954,28135.0,28134.0,1.36799861]
[1680736274161,0.70889954,28135.0,28134.0,1.36799861]
[1680736274373,0.70827699,28135.0,28134.0,1.35945883]
[1680736275002,0.70845699,28135.0,28134.0,1.35945883]
[1680736275436,0.70845699,28135.0,28134.0,1.36506178]
[1680736275437,0.70783669,28135.0,28134.0,1.36506178]
[1680736276084,0.70783669,28135.0,28134.0,0.94667122]
[1680736276305,0.73338742,28135.0,28134.0,0.26099722]
[1680736276524,0.73350742,28135.0,28132.0,0.12794398]
[1680736276737,0.73350742,28135.0,28131.0,0.18]
[1680736276738,0.48112156,28134.0,28131.0,0.18]
[1680736276954,0.128709,28133.0,28131.0,0.18]
[1680736277168,0.49535156,28132.0,28131.0,0.18]
[1680736277391,0.49553156,28132.0,28131.0,0.18]
[1680736278111,0.52253156,28132.0,28131.0,0.181]
[1680736278758,0.52235156,28132.0,28131.0,0.1654]
[1680736278977,0.52235156,28132.0,28131.0,0.0432]
[1680736279204,0.62235156,28132.0,28131.0,0.0432]
[1680736279420,1.01422456,28132.0,28131.0,0.0432]
[1680736279639,1.08982456,28132.0,28131.0,0.0432]
[1680736279852,1.10082456,28132.0,28131.0,0.0432]
[1680736280069,0.3741,28130.0,28126.0,0.02182]
[1680736280282,0.1134,28127.0,28126.0,0.02182]
[1680736280498,0.49573956,28127.0,28126.0,0.02182]
[1680736281130,0.59573956,28127.0,28126.0,0.02182]
[1680736282008,0.59973956,28127.0,28126.0,0.02182]
[1680736283320,0.67553956,28127.0,28126.0,0.02182]
[1680736283956,1.14963956,28127.0,28126.0,0.02182]
[1680736284605,1.03653956,28127.0,28126.0,0.02182]
[1680736285026,1.03253956,28127.0,28126.0,0.02182]
[1680736285915,1.04353956,28127.0,28126.0,0.02182]
[1680736286580,1.05353956,28127.0,28126.0,0.02182]
[1680736286798,1.04353956,28127.0,28126.0,0.02182]
[1680736287010,1.07053956,28127.0,28126.0,0.02182]
[1680736287455,0.63433956,28127.0,28126.0,0.16371681]
[1680736287681,0.138,28127.0,28126.0,0.16389681]
[1680736287914,0.138,28127.0,28126.0,1.47219434]
[1680736288120,0.00018,28131.0,28129.0,1.5]
[1680736288335,0.011,28132.0,28130.0,1.23627137]
[1680736288549,0.011,28132.0,28131.0,0.281284]
[1680736288768,0.011,28132.0,28131.0,1.60902334]
[1680736288983,0.011,28132.0,28131.0,1.85547923]
[1680736290084,0.011,28132.0,28131.0,2.03320923]
[1680736290535,0.011,28132.0,28131.0,2.06120923]
[1680736291631,0.022,28132.0,28131.0,1.67285653]
[1680736292303,0.022,28132.0,28131.0,1.60143653]
[1680736292505,0.022,28132.0,28131.0,1.60125653]
[1680736296583,0.022,28132.0,28131.0,0.80089456]
[1680736297448,0.033,28132.0,28131.0,0.80089456]
[1680736298637,0.033,28132.0,28131.0,0.75029456]
[1680736303117,0.044,28132.0,28131.0,0.75029456]
[1680736308769,0.055,28132.0,28131.0,0.75029456]
[1680736311183,0.055,28132.0,28131.0,0.94279137]
[1680736311405,0.055,28132.0,28131.0,1.14800658]
[1680736311823,0.055,28132.0,28131.0,1.35974661]
[1680736312058,0.055,28132.0,28131.0,1.14800658]
[1680736312271,0.055,28132.0,28131.0,1.12000658]
[1680736312481,0.055,28132.0,28131.0,1.14800658]
[1680736313084,0.055,28132.0,28131.0,0.97028658]
[1680736313499,0.055,28132.0,28131.0,0.94228658]
[1680736313704,0.055,28132.0,28131.0,0.97028658]
[1680736314574,0.066,28132.0,28131.0,0.97028658]
[1680736314982,0.066,28132.0,28131.0,1.18220661]
[1680736315220,0.066,28132.0,28131.0,1.18210394]
[1680736315430,0.066,28132.0,28131.0,1.15410394]
[1680736315623,0.066,28132.0,28131.0,0.94236391]
[1680736316138,0.066,28132.0,28131.0,0.98463459]
[1680736316385,0.066,28132.0,28131.0,1.01263459]
[1680736316609,0.066,28132.0,28131.0,1.01281459]
[1680736317023,0.066,28132.0,28131.0,1.18229302]
[1680736317437,0.066,28132.0,28131.0,1.18211302]
[1680736318263,0.066,28132.0,28131.0,0.97037299]
[1680736318484,0.066,28132.0,28131.0,1.18211302]
[1680736318899,0.066,28132.0,28131.0,0.97037299]
[1680736319081,0.066,28132.0,28131.0,1.18211302]
[1680736319699,0.066,28132.0,28131.0,0.97037299]
[1680736319905,0.066,28132.0,28131.0,1.14810299]
[1680736320118,0.066,28132.0,28131.0,1.33184302]
[1680736320315,0.077,28132.0,28131.0,0.97037299]
[1680736320734,0.077,28132.0,28131.0,0.92827299]
[1680736321158,0.077,28132.0,28131.0,0.88594262]
[1680736321368,0.177,28132.0,28131.0,0.88594262]
[1680736321580,0.17718,28132.0,28131.0,0.88594262]
[1680736325430,0.17718,28132.0,28131.0,1.05542105]
[1680736325817,0.17718,28132.0,28131.0,0.88594262]
[1680736326034,0.18818,28132.0,28131.0,0.88594262]
[1680736326993,0.18818,28132.0,28131.0,0.92827299]
[1680736327194,0.18818,28132.0,28131.0,1.14001302]
[1680736328020,0.18818,28132.0,28131.0,0.97053459]
[1680736328680,0.18818,28132.0,28131.0,1.14024355]
[1680736328999,0.18818,28132.0,28131.0,1.14024515]
[1680736329200,0.18818,28132.0,28131.0,0.97053459]
[1680736329996,0.18818,28132.0,28131.0,0.75879456]
[1680736331795,0.19918,28132.0,28131.0,0.75879456]
[1680736332211,0.19918,28132.0,28131.0,0.73079456]
[1680736332420,0.19918,28132.0,28131.0,0.75879456]
[1680736333919,0.199,28132.0,28131.0,0.75897456]
[1680736335811,0.19918,28132.0,28131.0,0.75879456]
[1680736337256,0.199,28132.0,28131.0,0.75897456]
[1680736337505,0.21,28132.0,28131.0,0.75897456]
[1680736337717,0.21018,28132.0,28131.0,0.75879456]
[1680736340526,0.21018,28132.0,28131.0,0.73079456]
[1680736340726,0.21018,28132.0,28131.0,0.75879456]
[1680736340922,0.21018,28132.0,28131.0,0.73079456]
[1680736341175,0.21018,28132.0,28131.0,0.75879456]
[1680736342056,0.21,28132.0,28131.0,0.75897456]
[1680736342455,0.21018,28132.0,28131.0,0.73079456]
[1680736343184,0.22118,28132.0,28131.0,0.73079456]
[1680736343395,0.22118,28132.0,28131.0,0.75879456]
[1680736343863,0.22118,28132.0,28131.0,0.73079456]
[1680736344089,0.22118,28132.0,28131.0,0.75879456]
[1680736344309,0.22118,28132.0,28131.0,0.73079456]
[1680736344492,0.22118,28132.0,28131.0,0.75885456]
[1680736344692,0.221,28132.0,28131.0,0.75897456]
[1680736344960,0.22118,28132.0,28131.0,0.75879456]
[1680736347663,0.221,28132.0,28131.0,0.75897456]
[1680736348071,0.22118,28132.0,28131.0,0.75879456]
[1680736348893,0.23218,28132.0,28131.0,0.75879456]
[1680736349102,0.23218,28132.0,28131.0,0.73079456]
[1680736349302,0.23218,28132.0,28131.0,0.75879456]
[1680736350534,0.232,28132.0,28131.0,0.75897456]
[1680736350946,0.23218,28132.0,28131.0,0.75879456]
[1680736352385,0.232,28132.0,28131.0,0.75897456]
[1680736352815,0.23218,28132.0,28131.0,0.75879456]
[1680736353020,0.23218,28132.0,28131.0,0.73079456]
[1680736353221,0.23218,28132.0,28131.0,0.75879456]
[1680736354512,0.24318,28132.0,28131.0,0.75879456]
[1680736355599,0.243,28132.0,28131.0,0.75897456]
[1680736356685,0.24318,28132.0,28131.0,0.75879456]
[1680736357091,0.24318,28132.0,28131.0,1.13506095]
[1680736359562,0.24312,28132.0,28131.0,1.13328792]
[1680736359792,0.24318,28132.0,28131.0,1.13316792]
[1680736360413,0.25418,28132.0,28131.0,1.13316792]
[1680736361027,0.25418,28132.0,28131.0,0.97529478]
[1680736361234,0.25418,28132.0,28131.0,1.03268278]
[1680736361839,0.25418,28132.0,28131.0,1.82588278]
[1680736362043,0.25418,28132.0,28131.0,1.48711639]
[1680736362245,0.234,28132.0,28131.0,1.48729639]
[1680736362417,0.234,28132.0,28131.0,1.66500639]
[1680736363494,0.234,28132.0,28131.0,1.86795651]
[1680736364962,0.234,28132.0,28131.0,1.66500639]
[1680736365183,0.234,28132.0,28131.0,1.66501639]
[1680736366027,0.234,28132.0,28131.0,1.48729639]
[1680736366239,0.245,28132.0,28131.0,1.48729639]
[1680736366457,0.245,28132.0,28131.0,1.66501639]
[1680736367335,0.245,28132.0,28131.0,1.48729639]
[1680736367993,0.245,28132.0,28131.0,4.63889639]
[1680736369401,0.245,28132.0,28131.0,4.67639639]
[1680736369614,0.245,28132.0,28131.0,4.93924651]
[1680736369839,0.240982,28132.0,28131.0,4.93924651]
[1680736370053,0.240982,28132.0,28131.0,4.91124651]
[1680736370486,0.240982,28132.0,28131.0,4.93924651]
[1680736370915,0.240174,28132.0,28131.0,4.93924651]
[1680736371351,0.240012,28132.0,28131.0,5.01504651]
[1680736371794,0.22947013,28132.0,28131.0,5.90632763]
[1680736372010,0.24047013,28132.0,28131.0,5.90632763]
[1680736372229,0.24047013,28132.0,28131.0,6.32023118]
[1680736372862,0.24047013,28132.0,28131.0,6.29223118]
[1680736373073,0.23465649,28132.0,28131.0,6.32023118]
[1680736373282,0.23465649,28132.0,28131.0,6.29223118]
[1680736373503,0.22042549,28132.0,28131.0,6.13623568]
[1680736373713,0.21756349,28132.0,28131.0,6.29223118]
[1680736373926,0.21698749,28132.0,28131.0,6.32023118]
[1680736374581,0.21698749,28132.0,28131.0,6.69433118]
[1680736374790,0.21687149,28132.0,28131.0,6.61843118]
[1680736375198,0.21687149,28132.0,28131.0,6.79613118]
[1680736376105,0.21687149,28132.0,28131.0,6.42203118]
[1680736376294,0.21687149,28132.0,28131.0,6.79613118]
[1680736377968,0.22787149,28132.0,28131.0,6.79613118]
[1680736378589,0.21739654,28132.0,28131.0,6.79613118]
[1680736378798,0.21739654,28132.0,28131.0,6.56034201]
[1680736383758,0.22839654,28132.0,28131.0,6.56034201]
[1680736387605,0.22839654,28132.0,28131.0,6.56035201]
[1680736388478,0.22839654,28132.0,28131.0,6.40435651]
[1680736388699,0.22839654,28132.0,28131.0,6.56035201]
[1680736390285,0.23939654,28132.0,28131.0,6.56035201]
[1680736390493,0.23939654,28132.0,28131.0,6.57810764]
[1680736390906,0.23939654,28132.0,28131.0,6.82979681]
[1680736392984,0.23939654,28132.0,28131.0,6.59400764]
[1680736394444,0.23939654,28132.0,28131.0,6.43801214]
[1680736394677,0.23939654,28132.0,28131.0,6.59400764]
[1680736395200,0.23939654,28132.0,28131.0,6.51850764]
[1680736396267,0.25039654,28132.0,28131.0,6.16320764]
[1680736396668,0.25057654,28132.0,28131.0,6.16318764]
[1680736396894,0.22385284,28132.0,28131.0,6.16318764]
[1680736397116,0.22367284,28132.0,28131.0,6.16318764]
[1680736397344,0.22367284,28132.0,28131.0,6.51848764]
[1680736399069,0.22367284,28132.0,28131.0,6.51849764]
[1680736400559,0.22367284,28132.0,28131.0,6.51848764]
[1680736401015,0.22367284,28132.0,28131.0,6.34079764]
[1680736401436,0.22367284,28132.0,28131.0,6.51848764]
[1680736402445,0.23467284,28132.0,28131.0,6.51848764]
[1680736404046,0.23467284,28132.0,28131.0,6.34079764]
[1680736404256,0.23467284,28132.0,28131.0,6.36249214]
[1680736404932,0.23467284,28132.0,28131.0,6.32499214]
[1680736405155,0.23467284,28132.0,28131.0,5.95089214]
[1680736405964,0.23467284,28132.0,28131.0,5.77320214]
[1680736406171,0.23467284,28132.0,28131.0,5.95090214]
[1680736406817,0.23467284,28132.0,28131.0,6.10689764]
[1680736408095,0.24567284,28132.0,28131.0,6.10689764]
[1680736413072,0.24567284,28132.0,28131.0,5.92919764]
[1680736413476,0.24567284,28132.0,28131.0,6.21529409]
[1680736413963,0.25667284,28132.0,28131.0,6.21529409]
[1680736414173,0.25685284,28132.0,28131.0,6.21529409]
[1680736416782,0.25685284,28132.0,28131.0,5.92919764]
[1680736417164,0.25685284,28132.0,28131.0,6.21625258]
[1680736418152,0.25685284,28132.0,28131.0,6.21628121]
[1680736418351,0.25685284,28132.0,28131.0,5.92919764]
[1680736418559,0.25685284,28132.0,28131.0,5.91144201]
[1680736418769,0.25685284,28132.0,28131.0,6.19852694]